fUST/lending_fUST_20250718
["ID","MTS","AMOUNT","RATE_DAILY","PERIOD"]
[372943095,1752815458222,-460.0,0.00017808,2]
[372943096,1752815458231,-460.0,0.00017808,2]
[372943097,1752815458241,-541.12,0.00017808,2]
[372943098,1752815458251,-460.0,0.00017808,2]
[372943099,1752815458261,-1632.89,0.00017808,2]
[372943100,1752815458270,-460.0,0.00017808,2]
[372943101,1752815458279,-554.83,0.00017808,2]
[372943102,1752815458288,-460.0,0.00017808,2]
[372943103,1752815458298,-460.0,0.00017808,2]
[372943104,1752815458308,-514.01,0.00017808,2]
[372943105,1752815458317,-460.0,0.00017808,2]
[372943106,1752815458326,-460.0,0.00017808,2]
[372943107,1752815458337,-460.0,0.00017808,2]
[372943108,1752815458347,-460.0,0.00017808,2]
[372943109,1752815458357,-485.62,0.00017808,2]
[372943110,1752815458366,-539.85793514,0.00017808,2]
[372943111,1752815458376,-460.0,0.00017808,2]
[372943112,1752815458386,-460.0,0.00017808,2]
[372943113,1752815458395,-460.0,0.00017808,2]
[372943114,1752815458404,-668.89,0.00017808,2]
[372943115,1752815458414,-460.0,0.00017808,2]
[372943116,1752815458424,-1293.35,0.00017808,2]
[372943117,1752815458433,-460.0,0.00017808,2]
[372943118,1752815458443,-460.0,0.00017808,2]
[372943119,1752815458454,-460.0,0.00017808,2]
[372943120,1752815458465,-460.0,0.00017808,2]
[372943121,1752815458475,-460.0,0.00017808,2]
[372943122,1752815458484,-460.0,0.00017808,2]
[372943123,1752815458493,-687.06,0.00017808,2]
[372943124,1752815458503,-460.0,0.00017808,2]
[372943125,1752815458513,-460.0,0.00017808,2]
[372943126,1752815458523,-917.11,0.00017808,2]
[372943127,1752815458532,-520.88273173,0.00017808,2]
[372943128,1752815458541,-460.0,0.00017808,2]
[372943129,1752815458551,-460.0,0.00017808,2]
[372943130,1752815458560,-467.11744404,0.00017808,2]
[372943131,1752815458570,-460.0,0.00017808,2]
[372943132,1752815458580,-460.0,0.00017808,2]
[372943133,1752815458591,-1683.315,0.00017808,5]
[372943134,1752815458600,-500.0,0.00017868,2]
[372943135,1752815458610,-315.0,0.00017875,2]
[372943136,1752815458619,-638.83695412,0.00017982,2]
[372943137,1752815458628,-460.0,0.00018082,2]
[372943138,1752815458638,-460.0,0.00018082,2]
[372943139,1752815458647,-460.0,0.00018082,2]
[372943140,1752815458656,-465.59898856,0.00018082,2]
[372943141,1752815458666,-460.0,0.00018082,2]
[372943142,1752815458675,-460.0,0.00018082,2]
[372943143,1752815458695,-460.0,0.00018082,2]
[372943144,1752815458706,-460.0,0.00018082,2]
[372943145,1752815458716,-460.0,0.00018082,2]
[372943146,1752815458725,-460.0,0.00018082,2]
[372943147,1752815458735,-460.0,0.00018082,2]
[372943148,1752815458745,-460.0,0.00018082,2]
[372943149,1752815458755,-460.0,0.00018082,2]
[372943150,1752815458764,-460.0,0.00018082,2]
[372943151,1752815458774,-163.8554416,0.00018082,2]
[372943152,1752815458784,-460.0,0.00018082,2]
[372943153,1752815458794,-460.0,0.00018082,2]
[372943154,1752815458804,-470.97731052,0.00018082,2]
[372943155,1752815458813,-155.78327691,0.00018082,2]
[372943156,1752815458823,-460.0,0.00018082,2]
[372943157,1752815458834,-460.0,0.00018082,2]
[372943158,1752815458846,-460.0,0.00018082,2]
[372943159,1752815458856,-460.0,0.00018082,2]
[372943160,1752815458866,-500.26654834,0.00018082,2]
[372943161,1752815458876,-478.56611906,0.00018082,2]
[372943162,1752815458886,-504.59197917,0.00018082,2]
[372943163,1752815458896,-460.0,0.00018082,2]
[372943164,1752815458906,-460.0,0.00018082,2]
[372943165,1752815458917,-460.0,0.00018082,2]
[372943166,1752815458927,-460.0,0.00018082,2]
[372943167,1752815458937,-460.0,0.00018082,2]
[372943168,1752815458946,-460.0,0.00018082,2]
[372943169,1752815458956,-415.83,0.00018082,2]
[372943170,1752815458967,-460.0,0.00018082,2]
[372943171,1752815458976,-477.12709771,0.00018082,2]
[372943172,1752815458986,-460.0,0.00018082,2]
[372943173,1752815458996,-460.0,0.00018082,2]
[372943174,1752815459006,-460.0,0.00018082,2]
[372943175,1752815459016,-460.0,0.00018082,2]
[372943176,1752815459025,-460.0,0.00018082,2]
[372943177,1752815459035,-460.0,0.00018082,2]
[372943178,1752815459045,-460.0,0.00018082,2]
[372943179,1752815459055,-460.0,0.00018082,2]
[372943180,1752815459064,-460.0,0.00018082,2]
[372943181,1752815459074,-460.0,0.00018082,2]
[372943182,1752815459084,-700.98,0.00018082,2]
[372943183,1752815459098,-460.0,0.00018082,2]
[372943184,1752815459108,-460.0,0.00018082,2]
[372943185,1752815459121,-1213.44,0.00018082,2]
[372943186,1752815459131,-460.0,0.00018082,2]
[372943187,1752815459140,-460.0,0.00018082,2]
[372943188,1752815459150,-460.0,0.00018082,2]
[372943189,1752815459161,-460.0,0.00018082,2]
[372943190,1752815459176,-460.0,0.00018082,2]
[372943191,1752815459186,-1387.38,0.00018082,2]
[372943192,1752815459196,-606.17,0.00018082,2]
[372943193,1752815459206,-460.0,0.00018082,2]
[372943194,1752815459216,-460.0,0.00018082,2]
[372943195,1752815459226,-460.0,0.00018082,2]
[372943196,1752815459236,-460.0,0.00018082,2]
[372943197,1752815459245,-716.94,0.00018082,2]
[372943198,1752815459254,-968.67,0.00018082,2]
[372943199,1752815459264,-460.0,0.00018082,2]
[372943200,1752815459273,-460.0,0.00018082,2]
[372943201,1752815459283,-460.0,0.00018082,2]
[372943202,1752815459292,-460.0,0.00018082,2]
[372943203,1752815459302,-974.73,0.00018082,2]
[372943204,1752815459312,-460.0,0.00018082,2]
[372943205,1752815459325,-460.0,0.00018082,2]
[372943206,1752815459335,-460.0,0.00018082,2]
[372943207,1752815459348,-1000.59,0.00018082,2]
[372943208,1752815459358,-460.0,0.00018082,2]
[372943209,1752815459367,-460.0,0.00018082,2]
[372943210,1752815459377,-460.0,0.00018082,2]
[372943211,1752815459386,-460.0,0.00018082,2]
[372943212,1752815459396,-460.0,0.00018082,2]
[372943213,1752815459406,-460.0,0.00018082,2]
[372943214,1752815459576,-460.0,0.00018082,2]
[372943215,1752815459586,-460.0,0.00018082,2]
[372943216,1752815459598,-460.0,0.00018082,2]
[372943217,1752815459607,-460.0,0.00018082,2]
[372943218,1752815459617,-541.12,0.00018082,2]
[372943219,1752815459627,-460.0,0.00018082,2]
[372943220,1752815459636,-1632.89,0.00018082,2]
[372943221,1752815459646,-460.0,0.00018082,2]
[372943222,1752815459655,-554.83,0.00018082,2]
[372943223,1752815459664,-460.0,0.00018082,2]
[372943224,1752815459674,-460.0,0.00018082,2]
[372943225,1752815459684,-514.01,0.00018082,2]
[372943226,1752815459693,-460.0,0.00018082,2]
[372943227,1752815459703,-460.0,0.00018082,2]
[372943228,1752815459712,-460.0,0.00018082,2]
[372943229,1752815459724,-485.62,0.00018082,2]
[372943230,1752815459734,-460.0,0.00018082,2]
[372943231,1752815459743,-460.0,0.00018082,2]
[372943232,1752815459753,-460.0,0.00018082,2]
[372943233,1752815459764,-668.89,0.00018082,2]
[372943234,1752815459774,-460.0,0.00018082,2]
[372943235,1752815459783,-1293.35,0.00018082,2]
[372943236,1752815459793,-460.0,0.00018082,2]
[372943237,1752815459803,-460.0,0.00018082,2]
[372943238,1752815459812,-460.0,0.00018082,2]
[372943239,1752815459822,-460.0,0.00018082,2]
[372943240,1752815459831,-460.0,0.00018082,2]
[372943241,1752815459844,-687.06,0.00018082,2]
[372943242,1752815459853,-460.0,0.00018082,2]
[372943243,1752815459863,-510.95010467,0.00018082,2]
[372943244,1752815459874,-917.11,0.00018082,2]
[372943245,1752815459884,-460.0,0.00018082,2]
[372943246,1752815459894,-460.0,0.00018082,2]
[372943247,1752815459903,-460.0,0.00018082,2]
[372943248,1752815459912,-646.75659067,0.00018126,2]
[372943249,1752815459922,-460.0,0.00018356,2]
[372943250,1752815459931,-460.0,0.00018356,2]
[372943251,1752815459940,-464.38507739,0.00018356,2]
[372943252,1752815459950,-460.0,0.00018356,2]
[372943253,1752815459960,-460.0,0.00018356,2]
[372943254,1752815459970,-466.1381054,0.00018356,2]
[372943255,1752815459979,-460.0,0.00018356,2]
[372943256,1752815459990,-182.03351193,0.00018356,2]
[372943257,1752815460000,-460.0,0.00018356,2]
[372943258,1752815460010,-503.89607381,0.00018356,2]
[372943259,1752815460019,-571.93415302,0.00018356,2]
[372943260,1752815460029,-460.0,0.00018356,2]
[372943261,1752815460038,-460.0,0.00018356,2]
[372943262,1752815460052,-388.2812801,0.00018356,2]
[372943263,1752815460074,-194.50185192,0.00018356,2]
[372943264,1752815460097,-483.9990788,0.00018356,2]
[372943265,1752815460116,-460.0,0.00018356,2]
[372943266,1752815460126,-460.0,0.00018356,2]
[372943267,1752815460137,-460.0,0.00018356,2]
[372943268,1752815460147,-460.0,0.00018356,2]
[372943269,1752815460157,-460.0,0.00018356,2]
[372943270,1752815460167,-460.0,0.00018356,2]
[372943271,1752815460178,-460.0,0.00018356,2]
[372943272,1752815460188,-460.0,0.00018356,2]
[372943273,1752815460197,-467.06496647,0.00018356,2]
[372943274,1752815460206,-460.0,0.00018356,2]
[372943275,1752815460216,-460.0,0.00018356,2]
[372943276,1752815460225,-394.08,0.00018356,2]
[372943277,1752815460235,-460.0,0.00018356,2]
[372943278,1752815460244,-460.0,0.00018356,2]
[372943279,1752815460254,-460.0,0.00018356,2]
[372943280,1752815460264,-460.0,0.00018356,2]
[372943281,1752815460273,-460.0,0.00018356,2]
[372943282,1752815460283,-700.98,0.00018356,2]
[372943283,1752815460292,-460.0,0.00018356,2]
[372943284,1752815460302,-460.0,0.00018356,2]
[372943285,1752815460311,-1213.44,0.00018356,2]
[372943286,1752815460321,-460.0,0.00018356,2]
[372943287,1752815460331,-460.0,0.00018356,2]
[372943288,1752815460340,-460.0,0.00018356,2]
[372943289,1752815460352,-460.0,0.00018356,2]
[372943290,1752815460361,-1387.38,0.00018356,2]
[372943291,1752815460370,-606.17,0.00018356,2]
[372943292,1752815460380,-460.0,0.00018356,2]
[372943293,1752815460390,-460.0,0.00018356,2]
[372943294,1752815460399,-460.0,0.00018356,2]
[372943295,1752815460409,-716.94,0.00018356,2]
[372943296,1752815460418,-968.67,0.00018356,2]
[372943297,1752815460428,-460.0,0.00018356,2]
[372943298,1752815460438,-460.0,0.00018356,2]
[372943299,1752815460447,-460.0,0.00018356,2]
[372943300,1752815460456,-460.0,0.00018356,2]
[372943301,1752815460465,-974.73,0.00018356,2]
[372943302,1752815460475,-460.0,0.00018356,2]
[372943303,1752815460485,-460.0,0.00018356,2]
[372943304,1752815460495,-460.0,0.00018356,2]
[372943305,1752815460504,-1000.59,0.00018356,2]
[372943306,1752815460514,-460.0,0.00018356,2]
[372943307,1752815460524,-460.0,0.00018356,2]
[372943308,1752815460533,-460.0,0.00018356,2]
[372943309,1752815460543,-460.0,0.00018356,2]
[372943310,1752815460552,-460.0,0.00018356,2]
[372943311,1752815460561,-460.0,0.00018356,2]
[372943312,1752815460571,-230.89048042,0.00018356,2]
[372943313,1752815460580,-460.0,0.00018356,2]
[372943314,1752815460590,-541.12,0.00018356,2]
[372943315,1752815460605,-460.0,0.00018356,2]
[372943316,1752815460615,-460.0,0.00018356,2]
[372943317,1752815460625,-1632.89,0.00018356,2]
[372943318,1752815460635,-554.83,0.00018356,2]
[372943319,1752815460645,-460.0,0.00018356,2]
[372943320,1752815460655,-460.0,0.00018356,2]
[372943321,1752815460666,-514.01,0.00018356,2]
[372943322,1752815460676,-460.0,0.00018356,2]
[372943323,1752815460687,-460.0,0.00018356,2]
[372943324,1752815460698,-460.0,0.00018356,2]
[372943325,1752815460707,-485.62,0.00018356,2]
[372943326,1752815460717,-549.59061715,0.00018356,2]
[372943327,1752815460728,-362.08,0.00018356,2]
[372943328,1752815460737,-460.0,0.00018356,2]
[372943329,1752815460746,-668.89,0.00018356,2]
[372943330,1752815460756,-460.0,0.00018356,2]
[372943331,1752815460765,-1293.35,0.00018356,2]
[372943332,1752815460774,-460.0,0.00018356,2]
[372943333,1752815460784,-460.0,0.00018356,2]
[372943334,1752815460794,-460.0,0.00018356,2]
[372943335,1752815460804,-460.0,0.00018356,2]
[372943336,1752815460814,-687.06,0.00018356,2]
[372943337,1752815460824,-460.0,0.00018356,2]
[372943338,1752815460835,-917.11,0.00018356,2]
[372943339,1752815460847,-460.0,0.00018356,2]
[372943340,1752815460857,-460.0,0.00018356,2]
[372943341,1752815460867,-460.0,0.00018356,2]
[372943342,1752815460876,-151.0,0.00018414,2]
[372943343,1752815460886,-151.0,0.00018414,2]
[372943344,1752815460896,-894.82099491,0.00018421,2]
[372943345,1752815460906,-422.9080593,0.00018609,2]
[372943346,1752815460915,-253.25875989,0.0001863,2]
[372943347,1752815460925,-460.0,0.0001863,2]
[372943348,1752815460935,-460.0,0.0001863,2]
[372943349,1752815460944,-460.0,0.0001863,2]
[372943350,1752815460954,-460.0,0.0001863,2]
[372943351,1752815460964,-460.0,0.0001863,2]
[372943352,1752815460974,-467.38602632,0.0001863,2]
[372943353,1752815460983,-460.0,0.0001863,2]
[372943354,1752815460992,-348.0771461,0.0001863,2]
[372943355,1752815461002,-460.0,0.0001863,2]
[372943356,1752815461012,-460.0,0.0001863,2]
[372943357,1752815461022,-460.0,0.0001863,2]
[372943358,1752815461031,-460.0,0.0001863,2]
[372943359,1752815461040,-460.0,0.0001863,2]
[372943360,1752815461051,-460.0,0.0001863,2]
[372943361,1752815461060,-460.0,0.0001863,2]
[372943362,1752815461069,-460.0,0.0001863,2]
[372943363,1752815461079,-460.0,0.0001863,2]
[372943364,1752815461090,-460.0,0.0001863,2]
[372943365,1752815461103,-460.0,0.0001863,2]
[372943366,1752815461113,-460.0,0.0001863,2]
[372943367,1752815461123,-460.0,0.0001863,2]
[372943368,1752815461132,-460.0,0.0001863,2]
[372943369,1752815461141,-700.98,0.0001863,2]
[372943370,1752815461151,-460.0,0.0001863,2]
[372943371,1752815461160,-380.94501965,0.0001863,2]
[372943372,1752815461171,-1213.44,0.0001863,2]
[372943373,1752815461180,-460.0,0.0001863,2]
[372943374,1752815461190,-460.0,0.0001863,2]
[372943375,1752815461199,-1387.38,0.0001863,2]
[372943376,1752815461209,-606.17,0.0001863,2]
[372943377,1752815461219,-460.0,0.0001863,2]
[372943378,1752815461229,-214.27376546,0.0001863,2]
[372943379,1752815461239,-460.0,0.0001863,2]
[372943380,1752815461248,-716.94,0.0001863,2]
[372943381,1752815461258,-968.67,0.0001863,2]
[372943382,1752815461267,-460.0,0.0001863,2]
[372943383,1752815461276,-460.0,0.0001863,2]
[372943384,1752815461285,-460.0,0.0001863,2]
[372943385,1752815461295,-460.0,0.0001863,2]
[372943386,1752815461306,-974.73,0.0001863,2]
[372943387,1752815461315,-460.0,0.0001863,2]
[372943388,1752815461325,-460.0,0.0001863,2]
[372943389,1752815461335,-460.0,0.0001863,2]
[372943390,1752815461348,-1000.59,0.0001863,2]
[372943391,1752815461358,-460.0,0.0001863,2]
[372943392,1752815461368,-326.49561731,0.0001863,2]
[372943393,1752815461377,-460.0,0.0001863,2]
[372943394,1752815461387,-460.0,0.0001863,2]
[372943395,1752815461396,-460.0,0.0001863,2]
[372943396,1752815461406,-460.0,0.0001863,2]
[372943397,1752815461415,-251.65,0.0001863,2]
[372943398,1752815461425,-541.12,0.0001863,2]
[372943399,1752815461434,-460.0,0.0001863,2]
[372943400,1752815461444,-460.0,0.0001863,2]
[372943401,1752815461454,-1632.89,0.0001863,2]
[372943402,1752815461463,-554.83,0.0001863,2]
[372943403,1752815461473,-460.0,0.0001863,2]
[372943404,1752815461482,-460.0,0.0001863,2]
[372943405,1752815461492,-514.01,0.0001863,2]
[372943406,1752815461500,-543.6487698,0.0001863,2]
[372943407,1752815461510,-460.0,0.0001863,2]
[372943408,1752815461519,-460.0,0.0001863,2]
[372943409,1752815461528,-485.62,0.0001863,2]
[372943410,1752815461537,-460.0,0.0001863,2]
[372943411,1752815461546,-668.89,0.0001863,2]
[372943412,1752815461556,-460.0,0.0001863,2]
[372943413,1752815461565,-1293.35,0.0001863,2]
[372943414,1752815461574,-460.0,0.0001863,2]
[372943415,1752815461583,-517.48,0.0001863,2]
[372943416,1752815461593,-460.0,0.0001863,2]
[372943417,1752815461608,-460.0,0.0001863,2]
[372943418,1752815461616,-687.06,0.0001863,2]
[372943419,1752815461625,-460.0,0.0001863,2]
[372943420,1752815461635,-917.11,0.0001863,2]
[372943421,1752815461644,-460.0,0.0001863,2]
[372943422,1752815461653,-460.0,0.0001863,2]
[372943423,1752815461663,-605.54489704,0.0001863,2]
[372943424,1752815461672,-160.0,0.00018728,2]
[372943425,1752815461682,-839.30593155,0.00018728,2]
[372943426,1752815461691,-160.0,0.00018728,2]
[372943427,1752815461700,-476.25663856,0.00018728,2]
[372943428,1752815461710,-160.0,0.00018728,2]
[372943429,1752815461719,-160.0,0.00018728,2]
[372943430,1752815461729,-230.89969799,0.00018728,2]
[372943431,1752815461738,-12610.43989422,0.00018728,2]
[372943432,1752815461748,-160.0,0.00018728,2]
[372943433,1752815461757,-160.0,0.00018728,2]
[372943434,1752815461766,-215.63268315,0.00018728,2]
[372943435,1752815461776,-214.4881157,0.00018728,2]
[372943436,1752815461785,-525.75194068,0.00018728,2]
[372943437,1752815461795,-151.0,0.00018804,2]
[372943438,1752815461804,-460.0,0.00018904,2]
[372943439,1752815461814,-460.0,0.00018904,2]
[372943440,1752815461824,-460.0,0.00018904,2]
[372943441,1752815461834,-460.0,0.00018904,2]
[372943442,1752815461843,-460.0,0.00018904,2]
[372943443,1752815461856,-460.0,0.00018904,2]
[372943444,1752815461866,-460.0,0.00018904,2]
[372943445,1752815461875,-460.0,0.00018904,2]
[372943446,1752815461886,-357.01222642,0.00018904,2]
[372943447,1752815461895,-460.0,0.00018904,2]
[372943448,1752815461905,-467.71719161,0.00018904,2]
[372943449,1752815461914,-532.68412228,0.00018904,2]
[372943450,1752815461924,-460.0,0.00018904,2]
[372943451,1752815461933,-460.0,0.00018904,2]
[372943452,1752815461942,-460.0,0.00018904,2]
[372943453,1752815461952,-234.22,0.00018904,2]
[372943454,1752815461962,-460.0,0.00018904,2]
[372943455,1752815461971,-460.0,0.00018904,2]
[372943456,1752815461981,-460.0,0.00018904,2]
[372943457,1752815461990,-460.0,0.00018904,2]
[372943458,1752815462000,-700.98,0.00018904,2]
[372943459,1752815462009,-460.0,0.00018904,2]
[372943460,1752815462019,-1213.44,0.00018904,2]
[372943461,1752815462028,-460.0,0.00018904,2]
[372943462,1752815462149,-316.29,0.00018904,2]
[372943463,1752815462160,-1387.38,0.00018904,2]
[372943464,1752815462172,-606.17,0.00018904,2]
[372943465,1752815462182,-460.0,0.00018904,2]
[372943466,1752815462191,-460.0,0.00018904,2]
[372943467,1752815462201,-716.94,0.00018904,2]
[372943468,1752815462210,-968.67,0.00018904,2]
[372943469,1752815462220,-460.0,0.00018904,2]
[372943470,1752815462229,-460.0,0.00018904,2]
[372943471,1752815462239,-385.41040052,0.00018904,2]
[372943472,1752815462248,-460.0,0.00018904,2]
[372943473,1752815462258,-974.73,0.00018904,2]
[372943474,1752815462268,-460.0,0.00018904,2]
[372943475,1752815462278,-460.0,0.00018904,2]
[372943476,1752815462287,-460.0,0.00018904,2]
[372943477,1752815462297,-1000.59,0.00018904,2]
[372943478,1752815462307,-153.48,0.00018904,2]
[372943479,1752815462317,-460.0,0.00018904,2]
[372943480,1752815462326,-460.0,0.00018904,2]
[372943481,1752815462335,-460.0,0.00018904,2]
[372943482,1752815462348,-552.31424337,0.00018904,2]
[372943483,1752815462358,-541.12,0.00018904,2]
[372943484,1752815462368,-460.0,0.00018904,2]
[372943485,1752815462377,-460.0,0.00018904,2]
[372943486,1752815462392,-1632.89,0.00018904,2]
[372943487,1752815462411,-554.83,0.00018904,2]
[372943488,1752815462421,-460.0,0.00018904,2]
[372943489,1752815462431,-460.0,0.00018904,2]
[372943490,1752815462440,-514.01,0.00018904,2]
[372943491,1752815462450,-460.0,0.00018904,2]
[372943492,1752815462459,-460.0,0.00018904,2]
[372943493,1752815462468,-485.62,0.00018904,2]
[372943494,1752815462478,-460.0,0.00018904,2]
[372943495,1752815462487,-668.89,0.00018904,2]
[372943496,1752815462496,-460.0,0.00018904,2]
[372943497,1752815462506,-1293.35,0.00018904,2]
[372943498,1752815462516,-460.0,0.00018904,2]
[372943499,1752815462525,-460.0,0.00018904,2]
[372943500,1752815462535,-687.06,0.00018904,2]
[372943501,1752815462544,-460.0,0.00018904,2]
[372943502,1752815462554,-460.0,0.00018904,2]
[372943503,1752815462563,-917.11,0.00018904,2]
[372943504,1752815462573,-460.0,0.00018904,2]
[372943505,1752815462583,-460.0,0.00018904,2]
[372943506,1752815462592,-460.0,0.00019178,2]
[372943507,1752815462605,-460.0,0.00019178,2]
[372943508,1752815462615,-460.0,0.00019178,2]
[372943509,1752815462625,-460.0,0.00019178,2]
[372943510,1752815462635,-460.0,0.00019178,2]
[372943511,1752815462644,-460.0,0.00019178,2]
[372943512,1752815462654,-374.17809554,0.00019178,2]
[372943513,1752815462663,-460.0,0.00019178,2]
[372943514,1752815462672,-460.0,0.00019178,2]
[372943515,1752815462682,-460.0,0.00019178,2]
[372943516,1752815462691,-460.0,0.00019178,2]
[372943517,1752815462700,-460.0,0.00019178,2]
[372943518,1752815462710,-460.0,0.00019178,2]
[372943519,1752815462719,-460.0,0.00019178,2]
[372943520,1752815462729,-300.4255567,0.00019178,2]
[372943521,1752815462739,-605.94981198,0.00019178,2]
[372943522,1752815462748,-257.012157,0.00019178,2]
[372943523,1752815462758,-700.98,0.00019178,2]
[372943524,1752815462767,-460.0,0.00019178,2]
[372943525,1752815462777,-1213.44,0.00019178,2]
[372943526,1752815462787,-395.48,0.00019178,2]
[372943527,1752815462796,-1387.38,0.00019178,2]
[372943528,1752815462806,-606.17,0.00019178,2]
[372943529,1752815462817,-331.25,0.00019178,2]
[372943530,1752815462827,-460.0,0.00019178,2]
[372943531,1752815462837,-716.94,0.00019178,2]
[372943532,1752815462849,-968.67,0.00019178,2]
[372943533,1752815462860,-460.0,0.00019178,2]
[372943534,1752815462871,-460.0,0.00019178,2]
[372943535,1752815462881,-460.0,0.00019178,2]
[372943536,1752815462892,-974.73,0.00019178,2]
[372943537,1752815462903,-460.0,0.00019178,2]
[372943538,1752815462915,-460.0,0.00019178,2]
[372943539,1752815462925,-460.0,0.00019178,2]
[372943540,1752815462936,-1000.59,0.00019178,2]
[372943541,1752815462945,-460.0,0.00019178,2]
[372943542,1752815462955,-460.0,0.00019178,2]
[372943543,1752815462965,-460.0,0.00019178,2]
[372943544,1752815462975,-541.12,0.00019178,2]
[372943545,1752815462985,-460.0,0.00019178,2]
[372943546,1752815462994,-460.0,0.00019178,2]
[372943547,1752815463004,-1632.89,0.00019178,2]
[372943548,1752815463014,-554.83,0.00019178,2]
[372943549,1752815463023,-460.0,0.00019178,2]
[372943550,1752815463033,-487.51225244,0.00019178,2]
[372943551,1752815463043,-514.01,0.00019178,2]
[372943552,1752815463053,-282.45,0.00019178,2]
[372943553,1752815463063,-460.0,0.00019178,2]
[372943554,1752815463073,-485.62,0.00019178,2]
[372943555,1752815463084,-485.61923589,0.00019178,2]
[372943556,1752815463097,-668.89,0.00019178,2]
[372943557,1752815463109,-460.0,0.00019178,2]
[372943558,1752815463119,-1293.35,0.00019178,2]
[372943559,1752815463131,-460.0,0.00019178,2]
[372943560,1752815463141,-460.0,0.00019178,2]
[372943561,1752815463151,-687.06,0.00019178,2]
[372943562,1752815463162,-460.0,0.00019178,2]
[372943563,1752815463171,-460.0,0.00019178,2]
[372943564,1752815463181,-917.11,0.00019178,2]
[372943565,1752815463191,-460.0,0.00019178,2]
[372943566,1752815463202,-460.0,0.00019178,2]
[372943567,1752815463212,-170.226087,0.00019178,2]
[372943568,1752815463222,-666.0,0.00019178,2]
[372943569,1752815463232,-151.0,0.00019329,2]
[372943570,1752815463243,-150.0,0.00019402,2]
[372943571,1752815463253,-500.0,0.00019406,2]
[372943572,1752815463263,-489.61,0.00019449,2]
[372943573,1752815463272,-460.0,0.00019452,2]
[372943574,1752815463283,-460.0,0.00019452,2]
[372943575,1752815463293,-460.0,0.00019452,2]
[372943576,1752815463303,-460.0,0.00019452,2]
[372943577,1752815463313,-460.0,0.00019452,2]
[372943578,1752815463323,-460.0,0.00019452,2]
[372943579,1752815463334,-455.86434054,0.00019452,2]
[372943580,1752815463343,-460.0,0.00019452,2]
[372943581,1752815463357,-464.93977529,0.00019452,2]
[372943582,1752815463367,-460.0,0.00019452,2]
[372943583,1752815463376,-460.0,0.00019452,2]
[372943584,1752815463386,-460.0,0.00019452,2]
[372943585,1752815463396,-700.98,0.00019452,2]
[372943586,1752815463407,-426.03,0.00019452,2]
[372943587,1752815463417,-1213.44,0.00019452,2]
[372943588,1752815463427,-1387.38,0.00019452,2]
[372943589,1752815463437,-606.17,0.00019452,2]
[372943590,1752815463447,-460.0,0.00019452,2]
[372943591,1752815463456,-716.94,0.00019452,2]
[372943592,1752815463466,-968.67,0.00019452,2]
[372943593,1752815463476,-288.46,0.00019452,2]
[372943594,1752815463486,-460.0,0.00019452,2]